Cogmind - Beta 14 @@@ ROGUE MODE // 2024.10.08 @ 20:29:31 Player: celerysam Result: Destroyed by Alpha 7 with Multirail Performance ------------- Evolutions (7) 3500 Regions Visited (14) 2800 Robots Destroyed (64) 320 Value Destroyed (2587) 2587 Prototype IDs (40) 800 Alien Tech Used (1) 200 Bonus (1300) 1300 TOTAL SCORE: 11507 Bonus ------- Triggered Max Security 1000 Aligned with FarCom 300 Cogmind --------- Core Integrity 0/1300 Matter 146/300 Energy 55/100 System Corruption 0% Temperature Cool (0) Movement Walking (115) Location -3/Quarantine Parts ------- > --- POWER (3) -------- (None) > --- PROPULSION (8) --- Biometal Leg High-density Centrium Leg Field Propulsion Array > --- UTILITY (7) ------ Improved System Guard > --- WEAPON (3) ------- Micro-nuke Launcher Advanced Datajack > --- INVENTORY (5) ---- Experimental Thermal Generator Advanced Remote Datajack Peak State ------------ > --- POWER ------------ Micro Fission Core Light Antimatter Reactor Micro Antimatter Reactor > --- PROPULSION ------- Biometal Medium Treads Armored Heavy Treads Antigrav System Improved Antigrav System Improved Antigrav System Improved Antigrav System Cooled Antigrav System > --- UTILITY ---------- Advanced Power Amplifier Experimental Thermal Generator Advanced Cooling System Advanced Energy Well Matter Compressor Transmission Jammer Improved Hacking Suite > --- WEAPON ----------- AWS/Autocannon > --- INVENTORY -------- Improved VTOL Module Improved Cesium-ion Thruster ECM Suite Quantum Rifle Heavy Shock Bomb Launcher [Rating: 157] Favorites ----------- Power Cooled Ion Engine Engine Cooled Ion Engine Power Core Micro Fission Core Reactor Micro Antimatter Reactor Propulsion Light Treads Treads Light Treads Leg Biometal Leg Wheel Wheel Hover Unit Improved Antigrav System Flight Unit Improved VTOL Module Utility Large Storage Unit Device Heat Sink Storage Large Storage Unit Processor Improved System Guard Hackware Improved Hacking Suite Protection Light Armor Plating Weapon Improved Assault Rifle Energy Gun Improved Medium Laser Energy Cannon Particle Cannon Ballistic Gun Improved Assault Rifle Ballistic Cannon AWS/Autocannon Launcher Micro-nuke Launcher Special Weapon Improved Plasma Cutter Slashing Weapon Sigix Broadsword Piercing Weapon Spear Special Melee Weapon Improved Datajack Build | -11 -10 -9 -9 -9 -8 -8 -7 -7 -7 -6 -5 -4 -3 -3 ------- Run | Yrd Mat Mat Min Exi Min Mat Fac Low Low Fac Fac Fac Res Qua Slots Evolved 14 | . . 2 . . . 2 2 . . 2 2 2 2 . Power 2 | . . . . . . . 1 . . . . 1 . . Propulsion 6 | . . 1 . . . 1 . . . 2 1 . 1 . Utility 5 | . . 1 . . . 1 . . . . 1 1 1 . Weapon 1 | . . . . . . . 1 . . . . . . . Parts Attached 183 | 4 7 18 1 . . 29 21 . . 15 20 2 57 9 Power 23 | . 2 2 . . . 3 4 . . 1 4 . 7 . Engine 13 | . 2 2 . . . 2 2 . . 1 2 . 2 . Core 5 | . . . . . . 1 2 . . . 2 . . . Reactor 5 | . . . . . . . . . . . . . 5 . Propulsion 68 | 1 2 4 1 . . 14 8 . . 2 4 . 29 3 Treads 13 | 1 . 4 1 . . 3 . . . . . . 4 . Leg 7 | . . . . . . . 2 . . . . . 3 2 Wheel 2 | . 2 . . . . . . . . . . . . . Hover 25 | . . . . . . 6 . . . . . . 19 . Flight 21 | . . . . . . 5 6 . . 2 4 . 3 1 Utility 47 | 1 1 6 . . . 8 7 . . 1 7 2 12 2 Device 24 | . . 2 . . . 4 3 . . . 6 . 8 1 Storage 7 | 1 . 1 . . . . 2 . . . . 2 1 . Processor 1 | . . . . . . . . . . . . . . 1 Hackware 2 | . . . . . . 1 . . . 1 . . . . Protection 13 | . 1 3 . . . 3 2 . . . 1 . 3 . Artifact . | . . . . . . . . . . . . . . . Weapon 45 | 2 2 6 . . . 4 2 . . 11 5 . 9 4 Energy Gun 14 | 1 1 4 . . . 2 . . . 2 2 . 2 . Energy Cannon 1 | . . 1 . . . . . . . . . . . . Ballistic Gun 7 | 1 1 1 . . . 1 . . . . . . 3 . Ballistic Cannon 3 | . . . . . . 1 . . . . . . 2 . Launcher 3 | . . . . . . . . . . . . . 1 2 Special Weapon 1 | . . . . . . . . . . . 1 . . . Impact Weapon . | . . . . . . . . . . . . . . . Slashing Weapon 1 | . . . . . . . . . . . . . . 1 Piercing Weapon 5 | . . . . . . . 1 . . 4 . . . . Special Melee Weapon 10 | . . . . . . . 1 . . 5 2 . 1 1 Unidentified Prototypes 18 | . . 3 . . . 1 . . . 2 3 1 5 3 Parts Lost 56 | . . . . . . 5 . . . . 1 5 41 4 Power 7 | . . . . . . . . . . . . 1 6 . Propulsion 25 | . . . . . . 5 . . . . . 2 17 1 Utility 14 | . . . . . . . . . . . 1 . 12 1 Weapon 10 | . . . . . . . . . . . . 2 6 2 Highest Loss Streak 22 | . . . . . . 2 . . . . 1 5 21 22 To Critical Strikes 1 | . . . . . . . . . . . . . . 1 Average Slot Usage (%) 83 | . 97 92 100 100 100 92 68 84 84 85 94 85 65 7 Engine 6 | . 14 10 11 11 11 7 2 . . 5 4 4 . . Core 2 | . . . . . . 1 4 7 7 6 5 5 2 . Treads 12 | . . 16 33 33 33 22 . . . . . . 4 . Wheel 2 | . 28 10 . . . . . . . . . . . . Hover 3 | . . . . . . 6 2 . . . . . 10 . Flight 10 | . . . . . . 1 22 30 30 39 36 29 7 1 Device 12 | . . 11 11 11 11 19 7 7 7 6 15 15 16 . Storage 7 | . 14 11 11 11 11 6 3 7 7 6 . 5 8 1 Hackware 2 | . . . . . . 1 7 7 7 6 5 5 2 . Protection 6 | . 11 11 11 11 11 7 3 7 7 6 5 5 1 . Energy Gun 6 | . 14 11 11 11 11 13 . . . . 4 5 1 . Ballistic Gun 3 | . 14 8 11 11 11 2 . . . . . . . . Piercing Weapon 1 | . . . . . . . 3 7 7 4 5 4 . . Special Melee Weapon 1 | . . . . . . . 2 7 7 2 4 4 . . Peak Build Rating 157 | 4 10 17 18 21 21 35 45 41 41 56 87 90 157 54 Average Rating 45 | 2 9 13 17 19 21 28 33 41 41 49 76 87 100 19 On Entrance 30 | . 4 10 17 18 21 21 25 41 41 41 54 82 69 15 Naked Turns 16 | . . . . . . . . . . . . . . 16 Heaviest Build 101 | 9 17 38 38 38 38 45 20 20 20 29 35 35 101 14 Greatest Support 95 | 20 26 60 63 63 63 86 20 20 20 29 41 41 95 60 Greatest Overweight (x) 7 | 2 . 1 . . . 4 . . . 1 . . 7 4 Average Overweight (x) . | . . . . . . . . . . . . . . . Largest Inventory Capacity 15 | 8 8 15 15 15 15 15 5 5 5 5 5 5 5 5 Average Capacity 9 | 7 8 14 15 15 15 12 5 5 5 5 5 5 5 5 Most Carried 15 | 8 8 15 15 15 15 15 5 5 5 5 5 5 5 5 Average Carried 8 | 6 7 12 14 14 15 12 4 5 5 4 4 4 4 2 Final Capacity 15 | 8 8 15 15 15 15 5 5 5 5 5 5 5 5 5 Final Carried 15 | 8 8 15 15 15 15 5 5 5 5 5 5 5 2 2 Class Distribution -------------------- 62% | Mutant 17% | Sprinter 7% | Infiltrator-Sprinter 4% | Scavenger-Skirmisher 4% | Infiltrator-Skirmisher Dominant Class ---------------- Mutant | -10/Materials Mutant | -9/Materials Mutant | -9/Mines Mutant | -9/Exiles Mutant | -8/Mines Mutant | -8/Materials Sprinter | -7/Factory Sprinter | -7/Lower Caves Sprinter | -7/Lower Caves Sprinter | -6/Factory Infiltrator-Sprinter | -5/Factory Infiltrator-Sprinter | -4/Factory Mutant | -3/Research Mutant | -3/Quarantine Resources | -11 -10 -9 -9 -9 -8 -8 -7 -7 -7 -6 -5 -4 -3 -3 ----------- Run | Yrd Mat Mat Min Exi Min Mat Fac Low Low Fac Fac Fac Res Qua Matter Collected 2221 | 185 67 290 113 . . 268 393 20 . 121 134 . 630 . Remotely . | . . . . . . . . . . . . . . . Salvage Created 2331 | . 183 338 90 . . 428 131 . . 102 240 . 819 . Parts 154 | . 9 33 4 . . 27 12 . . 4 12 . 53 . Haulers Intercepted 8 | . . 1 . . . 3 1 . . 1 2 . . . Recyclers Shooed 2 | . . . . . . 1 . . . . . . 1 . Parts Field Recycled . | . . . . . . . . . . . . . . . Retrieved Matter . | . . . . . . . . . . . . . . . Parts Self-Destructed 15 | . . . . . . . . 15 . . . . . . Prevented . | . . . . . . . . . . . . . . . Kills | -11 -10 -9 -9 -9 -8 -8 -7 -7 -7 -6 -5 -4 -3 -3 ------- Run | Yrd Mat Mat Min Exi Min Mat Fac Low Low Fac Fac Fac Res Qua Combat Hostiles Destroyed 41 | . 5 11 2 . . 5 1 . . . . . 17 . Melee 1 | . . . . . . . 1 . . . . . . . Guns 25 | . 5 11 2 . . 5 . . . . . . 2 . Cannons 14 | . . . . . . . . . . . . . 14 . AOE 1 | . . . . . . . . . . . . . 1 . Classes Destroyed 13 | . 1 4 . . . 2 2 . . . . . 4 . Worker 1 | . . . . . . . 1 . . . . . . . Builder 1 | . . . . . . . . . . . . . 1 . Hauler 8 | . . 1 . . . 3 1 . . 1 2 . . . Recycler 2 | . . . . . . 2 . . . . . . . . Operator 3 | . . . . . . . . . . . . . 3 . Watcher 8 | . . 1 . . . 1 1 . . 1 1 . 3 . Swarmer 7 | . . 7 . . . . . . . . . . . . Grunt 12 | . 5 . 2 . . 2 . . . . . . 3 . Sentry 8 | . . 4 . . . 2 . . . . . . 2 . Specialist 2 | . . . . . . . . . . . . . 2 . Hunter 4 | . . . . . . 1 . . . . . . 3 . Programmer 7 | . . . . . . . 1 . . . . . 6 . Heavy 1 | . . . . . . . . . . . . . 1 . Best Kill Streak 8 | . 3 4 2 . . 3 4 . . 1 1 . 8 . Combat Bots Only 4 | . 3 4 2 . . 2 1 . . . . . 4 . Max Kills in Single Turn 2 | . 1 2 2 . . 1 1 . . 1 1 . 2 . Gunslinging 1 | . . 1 1 . . . . . . . . . . . Exploded 1 | . . . . . . . . . . . . . 1 . Melee 1 | . . . . . . . 1 . . . . . . . Uniques/NPCs Destroyed . | . . . . . . . . . . . . . . . Combat | -11 -10 -9 -9 -9 -8 -8 -7 -7 -7 -6 -5 -4 -3 -3 -------- Run | Yrd Mat Mat Min Exi Min Mat Fac Low Low Fac Fac Fac Res Qua Hostile Shots Fired 845 | . 23 67 21 . . 145 39 . . 18 29 15 417 71 Missed 303 | . 6 16 9 . . 48 27 . . 10 10 7 147 23 Damage Taken 10445 | . 206 558 156 . . 1462 155 . . 121 283 486 6027 991 Core 1838 | . 49 96 10 . . 219 5 . . 48 44 62 893 412 Absorbed by Shields 39 | . . . . . . . . . . . . . 39 . Redirected to Shielding 3 | . 3 . . . . . . . . . . . . . Ignored by Resistances 24 | . . . . . . . . . . . . . 24 . Regen/Repaired (Parts) 18 | . . . . . . . . . . . . . . 18 Core Remaining (%) 86 | 100 80 . . . 73 60 . . 99 94 95 94 . . Volleys Fired 129 | . 13 36 8 . . 36 . . . . 1 . 32 3 Largest 2 | . 2 2 2 . . 2 . . . . 1 . 2 1 Hottest 133 | . 88 133 79 . . 128 . . . . 65 . 94 49 Shots Fired 296 | . 26 61 16 . . 71 . . . . 1 . 117 4 Gun 197 | . 26 55 16 . . 69 . . . . 1 . 30 . Cannon 92 | . . 6 . . . 2 . . . . . . 84 . Launcher 7 | . . . . . . . . . . . . . 3 4 Special . | . . . . . . . . . . . . . . . Kinetic 146 | . 13 19 8 . . 15 . . . . . . 91 . Thermal 142 | . 13 42 8 . . 56 . . . . . . 23 . Explosive 7 | . . . . . . . . . . . . . 3 4 Electromagnetic 1 | . . . . . . . . . . . 1 . . . Robot Hit Streak 16 | . 3 12 2 . . 7 . . . . . . 16 2 Robot Miss Streak 6 | . 5 3 4 . . 6 . . . . . . 3 . Penetration Max . | . . . . . . . . . . . . . . . Secondary Targets 3 | . . 2 1 . . . . . . . . . . . Max Gunslinging Chain 1 | . . 1 1 . . . . . . . . . . . Autonomous 76 | . . . . . . . . . . . . . 76 . Shots Hit Robots 228 | . 20 49 8 . . 52 4 . . 6 4 1 82 2 Core Hits 145 | . 18 36 3 . . 40 4 . . 2 3 . 39 . Critical Kills 1 | . . . . . . . . . . . . . 1 . Critical Parts Destroyed . | . . . . . . . . . . . . . . . Critical Strikes 8 | . . 2 . . . . . . . 1 . . 4 1 Burn 2 | . . 2 . . . . . . . . . . . . Destroy 1 | . . . . . . . . . . . . . 1 . Blast 3 | . . . . . . . . . . . . . 3 . Sever 1 | . . . . . . . . . . . . . . 1 Impale 1 | . . . . . . . . . . 1 . . . . Melee Attacks 93 | . . . . . . . 12 3 . 34 22 20 . 2 Impact . | . . . . . . . . . . . . . . . Slashing 2 | . . . . . . . . . . . . . . 2 Piercing 88 | . . . . . . . 11 3 . 33 22 19 . . Sneak Attacks 6 | . . . . . . . 2 . . 1 2 1 . . Combat Hostiles 1 | . . . . . . . . . . . . 1 . . Follow-up Attacks . | . . . . . . . . . . . . . . . Damage Inflicted 8728 | . 252 656 133 . . 820 189 . . 311 247 . 6064 56 Guns 2156 | . 252 652 133 . . 790 . . . . . . 329 . Cannons 5211 | . . . . . . . . . . . . . 5211 . Explosions 486 | . . . . . . . . . . . . . 486 . Melee 803 | . . . . . . . 189 . . 311 247 . . 56 Ramming 72 | . . 4 . . . 30 . . . . . . 38 . Kinetic 5771 | . 95 225 66 . . 158 . . . . . . 5227 . Thermal 1596 | . 157 427 67 . . 632 . . . . . . 313 . Explosive 486 | . . . . . . . . . . . . . 486 . Electromagnetic . | . . . . . . . . . . . . . . . Impact . | . . . . . . . . . . . . . . . Slashing 56 | . . . . . . . . . . . . . . 56 Piercing 747 | . . . . . . . 189 . . 311 247 . . . Highest Corruption 12 | . . 2 2 2 2 . . . . . . 8 12 12 Average Corruption 2 | . . 2 2 2 2 . . . . . . 8 2 12 Corruption Purged . | . . . . . . . . . . . . . . . Corruption Blocked . | . . . . . . . . . . . . . . . Effects 29 | . . 4 7 4 2 . . . . . . 1 9 2 Message Errors 6 | . . 2 2 1 1 . . . . . . . . . Matter Fused 7 | . . . 2 1 . . . . . . . . 3 1 Heat Flow Errors 3 | . . 1 . 1 . . . . . . . . 1 . Energy Discharges 6 | . . 1 3 . 1 . . . . . . . 1 . Parts Rejected 2 | . . . . . . . . . . . . . 2 . Data Loss (minor) 4 | . . . . 1 . . . . . . . 1 2 . Misfires 1 | . . . . . . . . . . . . . . 1 Overload Shots . | . . . . . . . . . . . . . . . Overflow Damage 478 | . . . . . . 1 . . . . 1 . 471 5 Projectiles 471 | . . . . . . . . . . . . . 471 . Explosions 5 | . . . . . . . . . . . . . . 5 Melee 2 | . . . . . . 1 . . . . 1 . . . Knockbacks 28 | . . . . . . . . . . . . . 28 . Impact . | . . . . . . . . . . . . . . . Kinetic 25 | . . . . . . . . . . . . . 25 . Secondary 3 | . . . . . . . . . . . . . 3 . Self-Inflicted Damage 94 | . . . . . . 14 . . . . . . 19 61 Shots 2 | . . . . . . . . . . . . . . 2 Rammed 5 | . . 1 . . . 2 . . . . . . 2 . Targets Rammed 5 | . . 1 . . . 2 . . . . . . 2 . Kicked . | . . . . . . . . . . . . . . . Crushed . | . . . . . . . . . . . . . . . Highest Temperature 304 | . 304 229 32 110 . 2 . . . 214 152 . 228 . Average Temperature 68 | . 147 43 15 65 . 2 . . . 133 48 . 48 . Received Heat Transfer 1524 | . 117 153 93 . . 711 27 . . 18 . 18 306 81 Siege Activations . | . . . . . . . . . . . . . . . Robots Corrupted 1 | . . . . . . 1 . . . . . . . . Combat Hostiles . | . . . . . . . . . . . . . . . Parts Fried 3 | . . . . . . 3 . . . . . . . . Impact Corruptions 2 | . . . . . . 1 . . . . . . 1 . Robots Melted . | . . . . . . . . . . . . . . . Combat Hostiles . | . . . . . . . . . . . . . . . Parts Melted 3 | . . 2 . . . 1 . . . . . . . . Heat Transferred 2898 | . 190 848 148 . . 1127 . . . . . . 585 . Parts Sabotaged . | . . . . . . . . . . . . . . . Parts Stolen . | . . . . . . . . . . . . . . . Parts Stripped . | . . . . . . . . . . . . . . . Power Chain Reactions . | . . . . . . . . . . . . . . . Alert | -11 -10 -9 -9 -9 -8 -8 -7 -7 -7 -6 -5 -4 -3 -3 ------- Run | Yrd Mat Mat Min Exi Min Mat Fac Low Low Fac Fac Fac Res Qua Peak Influence 1686 | . 120 337 105 . . 206 249 . . 137 279 244 317 1686 Initial 109 | . . 50 55 . . . 39 . . 44 61 42 109 20 Average 157 | . 44 214 99 . . 64 111 . . 80 201 126 129 1627 Maximum Alert Level 5 | . . 1 . . . 1 1 . . . 1 1 1 5 Low Security (%) 74 | 100 100 49 100 . 100 99 75 . . 100 35 54 68 . Level 1 23 | . . 50 . . . . 24 . . . 64 45 31 . Level 2 . | . . . . . . . . . . . . . . . Level 3 . | . . . . . . . . . . . . . . . Level 4 . | . . . . . . . . . . . . . . . Level 5 . | . . . . . . . . . . . . . . . High Security . | . . . . . . . . . . . . . . . Max Security 2 | . . . . . . . . . . . . . . 99 Squads Dispatched 25 | . 1 2 . . . 3 2 . . 1 2 . 8 6 Investigation 4 | . 1 . . . . . 2 . . . 1 . . . Extermination 2 | . . . . . . . . . . . . . 2 . Reinforcement 10 | . . 2 . . . 2 . . . 1 1 . 4 . Assault 7 | . . . . . . . . . . . . . 1 6 Garrison 2 | . . . . . . 1 . . . . . . 1 . Intercept . | . . . . . . . . . . . . . . . Searches Triggered . | . . . . . . . . . . . . . . . Construction Impeded . | . . . . . . . . . . . . . . . Haulers Reinforced 2 | . . . . . . . . . . 1 . . 1 . Active Scanning Responses . | . . . . . . . . . . . . . . . Cargo Convoy Interrupts . | . . . . . . . . . . . . . . . Stealth | -11 -10 -9 -9 -9 -8 -8 -7 -7 -7 -6 -5 -4 -3 -3 --------- Run | Yrd Mat Mat Min Exi Min Mat Fac Low Low Fac Fac Fac Res Qua Distress Signals 8 | . . . . . . 4 1 . . . . 1 2 . Communications Jammed 13 | . . . . . . . . . . . . . 13 . Distress Signals . | . . . . . . . . . . . . . . . Times Spotted 164 | . 6 16 2 . . 29 15 . . 5 17 8 64 2 Peak Tracking Total 14 | . 3 4 2 . . 11 6 . . 3 6 4 14 7 Tactical Retreats 24 | . . 2 . . . 3 4 . . . 3 1 11 . Traps | -11 -10 -9 -9 -9 -8 -8 -7 -7 -7 -6 -5 -4 -3 -3 ------- Run | Yrd Mat Mat Min Exi Min Mat Fac Low Low Fac Fac Fac Res Qua Traps Triggered 7 | . 1 1 . . . . 2 . . . 1 . 2 . Indirectly . | . . . . . . . . . . . . . . . Trap Hack Attempts 30 | . . . . . . . . . . 30 . . . . Triggered 1 | . . . . . . . . . . 1 . . . . Disarmed 2 | . . . . . . . . . . 2 . . . . Reprogrammed 3 | . . . . . . . . . . 3 . . . . Reused . | . . . . . . . . . . . . . . . Traps Extracted . | . . . . . . . . . . . . . . . Installed . | . . . . . . . . . . . . . . . Triggered 2 | . . . . . . . . 2 . . . . . . Machines | -11 -10 -9 -9 -9 -8 -8 -7 -7 -7 -6 -5 -4 -3 -3 ---------- Run | Yrd Mat Mat Min Exi Min Mat Fac Low Low Fac Fac Fac Res Qua Machines Disabled 8 | . . 1 . . . 1 . . . . . 4 . 2 Max in Single Turn 1 | . . 1 . . . 1 . . . . . . . 1 Garrison Access 1 | . . . . . . . . . . . . . 1 . Machines Repaired . | . . . . . . . . . . . . . . . Machines Dismantled . | . . . . . . . . . . . . . . . Machines Sabotaged . | . . . . . . . . . . . . . . . Overloaded Fab Kills . | . . . . . . . . . . . . . . . Hacking | -11 -10 -9 -9 -9 -8 -8 -7 -7 -7 -6 -5 -4 -3 -3 --------- Run | Yrd Mat Mat Min Exi Min Mat Fac Low Low Fac Fac Fac Res Qua Machines Accessed 25 | . 1 1 . 3 . 2 6 2 . 2 4 1 3 . Terminals 15 | . 1 1 . . . 1 4 . . 2 3 1 2 . Fabricators 3 | . . . . . . . 2 . . . 1 . . . Repair Stations 1 | . . . . . . . . . . . . . 1 . Recycling Units 1 | . . . . . . 1 . . . . . . . . Scanalyzers . | . . . . . . . . . . . . . . . Garrison Access . | . . . . . . . . . . . . . . . Total Hacks 48 | . 2 1 . 7 . 2 9 8 . 2 8 1 8 . Successful 31 | . 1 1 . 7 . 2 4 8 . 1 2 1 4 . Failed 17 | . 1 . . . . . 5 . . 1 6 . 4 . Catastrophic . | . . . . . . . . . . . . . . . Database Lockouts . | . . . . . . . . . . . . . . . Manual 17 | . 2 1 . 1 . . 5 . . 2 4 1 1 . Terminals 27 | . 2 1 . . . 1 7 . . 2 6 1 7 . Fabricators 4 | . . . . . . . 2 . . . 2 . . . Repair Stations 1 | . . . . . . . . . . . . . 1 . Recycling Units 1 | . . . . . . 1 . . . . . . . . Scanalyzers . | . . . . . . . . . . . . . . . Garrison Access . | . . . . . . . . . . . . . . . Terminal Hacks 20 | . . 1 . 7 . 1 1 8 . . . . 2 . Record 13 | . . . . 6 . . . 7 . . . . . . Open Door 1 | . . . . . . . . 1 . . . . . . Alert Level 3 | . . . . . . 1 1 . . . . . 1 . Unreport Threat 2 | . . 1 . . . . . . . . . . 1 . Derelict Proto ID Bank 1 | . . . . 1 . . . . . . . . . . Fabricator Hacks 2 | . . . . . . . 1 . . . 1 . . . Network Status 1 | . . . . . . . 1 . . . . . . . Build 1 | . . . . . . . . . . . 1 . . . Repair Station Hacks 1 | . . . . . . . . . . . . . 1 . Refit 1 | . . . . . . . . . . . . . 1 . Recycling Unit Hacks 1 | . . . . . . 1 . . . . . . . . Retrieve Components 1 | . . . . . . 1 . . . . . . . . Scanalyzer . | . . . . . . . . . . . . . . . Garrison Access Hacks . | . . . . . . . . . . . . . . . Unauthorized Hacks 7 | . 1 . . . . . 2 . . 1 1 1 1 . Terminals 7 | . 1 . . . . . 2 . . 1 1 1 1 . Assimilate 6 | . . . . . . . 2 . . 1 1 1 1 . Botnet 1 | . 1 . . . . . . . . . . . . . Fabricators . | . . . . . . . . . . . . . . . Repair Stations . | . . . . . . . . . . . . . . . Recycling Units . | . . . . . . . . . . . . . . . Scanalyzers . | . . . . . . . . . . . . . . . Garrison Access . | . . . . . . . . . . . . . . . Data Cores Recovered 2 | . . . . . . . . . . . . . 2 . Used . | . . . . . . . . . . . . . . . Hacking Detections 13 | . 1 . . . . 2 3 . . 1 3 . 3 . Full Trace Events 1 | . . . . . . . 1 . . . . . . . Feedback Events . | . . . . . . . . . . . . . . . Feedback Blocked . | . . . . . . . . . . . . . . . Robot Schematics Acquired . | . . . . . . . . . . . . . . . Robots Built 2 | . . . . . . . . . . . 2 . . . Authchips . | . . . . . . . . . . . . . . . Time 81 | . . . . . . . . . . . 81 . . . Total Robot Build Rating 2 | . . . . . . . . . . . 2 . . . Part Schematics Acquired . | . . . . . . . . . . . . . . . Parts Built . | . . . . . . . . . . . . . . . Authchips . | . . . . . . . . . . . . . . . Time . | . . . . . . . . . . . . . . . Total Part Build Rating . | . . . . . . . . . . . . . . . Parts Repaired . | . . . . . . . . . . . . . . . Time . | . . . . . . . . . . . . . . . Parts Recycled . | . . . . . . . . . . . . . . . Recycled Matter . | . . . . . . . . . . . . . . . Retrieved Matter . | . . . . . . . . . . . . . . . Retrieved Components 10 | . . . . . . 10 . . . . . . . . Parts Scanalyzed . | . . . . . . . . . . . . . . . Part Schematics Acquired . | . . . . . . . . . . . . . . . Parts Damaged . | . . . . . . . . . . . . . . . Bothacking | -11 -10 -9 -9 -9 -8 -8 -7 -7 -7 -6 -5 -4 -3 -3 ------------ Run | Yrd Mat Mat Min Exi Min Mat Fac Low Low Fac Fac Fac Res Qua Used RIF Installer . | . . . . . . . . . . . . . . . Robots Hacked . | . . . . . . . . . . . . . . . Non-combat . | . . . . . . . . . . . . . . . Combat . | . . . . . . . . . . . . . . . Robot Hacks Applied . | . . . . . . . . . . . . . . . Relay Couplers Released 1 | . . . . . . . . . . . . . 1 . Machine Destruction 1 | . . . . . . . . . . . . . 1 . Fabnet Peak Effective % . | . . . . . . . . . . . . . . . Robots Rewired 1 | . . . . . . . . . . . . 1 . . Allies Hacked . | . . . . . . . . . . . . . . . Hacks Repelled . | . . . . . . . . . . . . . . . Allies | -11 -10 -9 -9 -9 -8 -8 -7 -7 -7 -6 -5 -4 -3 -3 -------- Run | Yrd Mat Mat Min Exi Min Mat Fac Low Low Fac Fac Fac Res Qua Total Allies 7 | . . . . . . . 1 . . 1 3 2 . . Largest Group 3 | . . . . . . . 1 . . 1 2 3 . . Highest-Rated Group 65 | . . . . . . . 26 . . 26 26 65 . . Highest-Rated Ally 49 | . . . . . . . 26 . . 26 26 49 . . Total Orders . | . . . . . . . . . . . . . . . Ally Attacks 3 | . . . . . . . . . . . . 3 . . Total Damage 691 | . . . . . . . . . . . . 691 . . Kills 6 | . . . . . . . . . . . . 6 . . Allies Corrupted . | . . . . . . . . . . . . . . . Allies Melted . | . . . . . . . . . . . . . . . Intel | -11 -10 -9 -9 -9 -8 -8 -7 -7 -7 -6 -5 -4 -3 -3 ------- Run | Yrd Mat Mat Min Exi Min Mat Fac Low Low Fac Fac Fac Res Qua Robot Analysis Total . | . . . . . . . . . . . . . . . Derelict Logs Recovered 3 | . . . 1 . . . . 2 . . . . . . Drone Launches . | . . . . . . . . . . . . . . . Drone Recoveries . | . . . . . . . . . . . . . . . Exploration | -11 -10 -9 -9 -9 -8 -8 -7 -7 -7 -6 -5 -4 -3 -3 ------------- Run | Yrd Mat Mat Min Exi Min Mat Fac Low Low Fac Fac Fac Res Qua Turns Passed 5815 | 72 151 726 409 369 252 917 565 192 45 248 404 142 1187 136 Spaces Moved 7454 | 49 111 452 239 230 158 597 1484 700 164 469 1119 358 1170 154 Core 133 | 26 . . . . . . . . . . . . 9 98 Treads 1371 | 23 . 194 239 230 158 344 . . . . . . 183 . Legs 26 | . . . . . . . . . . . . . . 26 Wheels 369 | . 111 258 . . . . . . . . . . . . Hover 750 | . . . . . . 194 . . . . . . 549 7 Flight 4805 | . . . . . . 59 1484 700 164 469 1119 358 429 23 Fastest Speed 14 | 50 90 90 160 160 160 29 26 26 26 17 14 21 28 40 Average Speed 62 | 120 90 126 160 160 160 122 32 26 26 20 20 23 83 69 Slowest Speed 540 | 160 90 160 160 160 160 315 52 26 26 90 25 28 540 250 Overloaded Moves 64 | . . . . . . . . . . 4 60 . . . Propulsion Burnouts . | . . . . . . . . . . . . . . . Robots Hopped 13 | . . . . . . 1 2 . . . 8 1 1 . Cave-ins Triggered 1 | . . . . . . . . . . . . 1 . . Exploration Rate (%) 38 | 4 36 44 57 61 57 50 48 81 22 16 38 14 28 17 Regions Visited 14 Branch Regions 6 Pre-discovered Areas 2 | . . . . 1 . . . 1 . . . . . . Known Exits Taken 3 | . . . . . . . . 1 1 1 . . . . Unknown Exits Taken 11 | 1 1 1 1 1 1 1 1 . . . 1 1 1 . Scrap Searched 3 | . . . 1 . . . . 2 . . . . . . Spaces Dug 82 | . . . . . . . 4 3 . 22 17 17 19 . Terrain Destroyed 153 | . . . . . . . 4 3 . 22 17 17 58 32 Melee 63 | . . . . . . . 4 3 . 22 17 17 . . Projectile 18 | . . . . . . . . . . . . . 18 . AOE 72 | . . . . . . . . . . . . . 40 32 Terrain Rammed . | . . . . . . . . . . . . . . . Walls Destroyed . | . . . . . . . . . . . . . . . Machines Disabled . | . . . . . . . . . . . . . . . Actions | -11 -10 -9 -9 -9 -8 -8 -7 -7 -7 -6 -5 -4 -3 -3 --------- Run | Yrd Mat Mat Min Exi Min Mat Fac Low Low Fac Fac Fac Res Qua Total 8264 | 60 143 550 252 233 157 724 1554 704 165 563 1255 386 1340 178 Wait 115 | . . 8 . . . 19 . 2 2 10 59 3 12 . Move 7416 | 48 110 451 238 229 157 594 1479 699 163 468 1104 355 1167 154 Hop 11 | . . . . . . 1 2 . . . 6 1 1 . Pick Up 105 | 8 6 19 2 1 . 11 3 . . 3 9 3 31 9 Fast Attach 62 | 4 1 5 . . . 11 13 . . 3 6 . 19 . Attach 61 | . 2 4 . . . 5 5 . . 3 5 1 27 9 Detach 14 | . . . . . . 3 3 . . 1 3 . 4 . Swap 60 | . 4 9 1 . . 13 3 . . 9 9 1 11 . Drop 117 | . 7 17 3 3 . 29 16 . . 2 16 2 21 1 Fire 129 | . 13 36 8 . . 36 . . . . 1 . 32 3 Melee 93 | . . . . . . . 12 3 . 34 22 20 . 2 Ram 4 | . . . . . . 2 . . . . . . 2 . Kick . | . . . . . . . . . . . . . . . Crush 1 | . . 1 . . . . . . . . . . . . Escape Stasis 46 | . . . . . . . 18 . . . 15 . 13 . Rewire . | . . . . . . . . . . . . . . . Trap 30 | . . . . . . . . . . 30 . . . . Miscellaneous . | . . . . . . . . . . . . . . . Route ------- -11/Scrapyard -10/Materials (discovered 2 exits: *Mat / [*Min]) -9/Materials (discovered 2 exits: *Mat / [*Min]) -9/Mines (discovered 3 exits: *Mat / *Exi / [*Zio]) -9/Exiles -8/Mines -8/Materials -7/Factory (discovered 3 exits: *Fac / *Low x2) -7/Lower Caves -7/Lower Caves -6/Factory (discovered 3 exits: *Fac x3) -5/Factory -4/Factory (discovered 2 exits: *Res / Arm) -3/Research -3/Quarantine History --------- Turn | Location | Event 17 | -11/Scrapyard | Discovered new exit (range 15) 73 | -11/Scrapyard | Entered Materials 138 | -10/Materials | Discovered new exit (range 14) 187 | -10/Materials | Discovered new exit (range 10) 224 | -10/Materials | Entered another Materials area 224 | -9/Materials | Evolved 2 slots: Propulsion x1, Utility x1 313 | -9/Materials | Build established: Mutant 531 | -9/Materials | Discovered new exit (range 16) 939 | -9/Materials | Discovered new exit (range 8) 950 | -9/Materials | Entered Mines 1059 | -9/Mines | A Derelict revealed a hidden shortcut to a safe place 1133 | -9/Mines | Learned location of 1 exit from Lower Caves 1157 | -9/Mines | Discovered new exit (range 11) 1351 | -9/Mines | Deemed a non-threat by the Exiles lab entrance 1351 | -9/Mines | Discovered new exit (range 5) 1359 | -9/Mines | Entered Exiles 1399 | -9/Exiles | Met 8R-AWN 1425 | -9/Exiles | Met EX-HEX 1473 | -9/Exiles | Met EX-BIN 1492 | -9/Exiles | Aligned with FarCom system 1494 | -9/Exiles | Given EX-Vault access code 1531 | -9/Exiles | Opened EX-Vault 1542 | -9/Exiles | Found AWS/Autocannon 1580 | -9/Exiles | Warned to stay clear of 0b10 Research branches 1623 | -9/Exiles | Met EX-DEC 1668 | -9/Exiles | Learned location of Zion (-7) 1714 | -9/Exiles | Discovered new exit (range 10) 1728 | -9/Exiles | Left Exiles lab with AWS/Autocannon 1728 | -9/Exiles | Entered Mines 1970 | -8/Mines | Discovered new exit (range 6) 1980 | -8/Mines | Entered Materials 1980 | -8/Materials | Evolved 2 slots: Propulsion x1, Utility x1 2660 | -8/Materials | Garrison activated, responded to threat 2875 | -8/Materials | Discovered new exit (range 10) 2897 | -8/Materials | Entered Factory 2897 | -7/Factory | Evolved 2 slots: Power x1, Weapon x1 3438 | -7/Factory | Discovered new exit (range 4) 3441 | -7/Factory | Discovered new exit (range 13) 3450 | -7/Factory | Discovered new exit (range 14) 3462 | -7/Factory | Entered Lower Caves 3463 | -7/Lower Caves | Identified exit to Lower Caves 3477 | -7/Lower Caves | Build established: Sprinter 3479 | -7/Lower Caves | Learned location of Extension (-4) 3479 | -7/Lower Caves | Learned Research emergency access door positions 3479 | -7/Lower Caves | Learned Factory stockpile data 3479 | -7/Lower Caves | Learned Extension terminal intel 3569 | -7/Lower Caves | Learned 4 Factory zone layouts 3654 | -7/Lower Caves | Entered another Lower Caves area 3655 | -7/Lower Caves | Identified exit to Factory 3665 | -7/Lower Caves | Encountered a Warlord checkpoint 3699 | -7/Lower Caves | Entered Factory 3699 | -6/Factory | Evolved 2 slots: Propulsion x2 3700 | -6/Factory | Identified exit to Factory 3947 | -6/Factory | Entered another Factory area 3947 | -5/Factory | Evolved 2 slots: Propulsion x1, Utility x1 4277 | -5/Factory | Fabricated R-06 Scavenger? 4289 | -5/Factory | Discovered new exit (range 11) 4351 | -5/Factory | Entered another Factory area 4351 | -4/Factory | Accompanied by 2 allies 4351 | -4/Factory | Evolved 2 slots: Power x1, Utility x1 4352 | -4/Factory | Identified exit to Armory 4379 | -4/Factory | Build established: Infiltrator-Sprinter 4475 | -4/Factory | Crushed by falling debris 4483 | -4/Factory | Discovered new exit (range 16) 4493 | -4/Factory | Entered Research 4493 | -3/Research | Evolved 2 slots: Propulsion x1, Utility x1 4514 | -3/Research | Lost 5 parts (1p2n2w) 4651 | -3/Research | Lost 3 parts (2n1u) 5204 | -3/Research | Garrison activated, responded to threat 5210 | -3/Research | Spotted B-86 Titan 5306 | -3/Research | Lost 16 parts (2p7n4u3w) 5324 | -3/Research | Discovered new exit (range 7) 5579 | -3/Research | Build established: Mutant 5641 | -3/Research | System corruption reached 10% 5650 | -3/Research | Core integrity fell below 50% 5680 | -3/Research | Entered Quarantine 5681 | -3/Quarantine | Maximum security lockdown engaged 5685 | -3/Quarantine | Spotted Alpha 7 5717 | -3/Quarantine | Lost 22 parts (3p9n7u3w) 5734 | -3/Quarantine | Core integrity fell below 20% 5739 | -3/Quarantine | Found Alien Slashing Weapon 5740 | -3/Quarantine | Identified Sigix Broadsword 5780 | -3/Quarantine | Found Prototype Device 5781 | -3/Quarantine | Identified Exp. Thermal Shield 5782 | -3/Quarantine | Lost 3 parts (1u2w) 5816 | -3/Quarantine | Destroyed by Alpha 7 with Multirail Last Messages --------------- 05751_ Sigix Broadsword destroyed. 05751_ Slug penetrates Suspension Chamber. 05754_ Penetrated by Slug. 05754_ Slug penetrates Wall. 05762_ Acquired Field Propulsion Array. 05766_ Acquired Adv. Datajack. 05771_ Acquired Biometal Leg. 05775_ Acquired Imp. System Guard. 05778_ Acquired Micro-nuke Launcher. 05780_ Acquired Prototype Device. 05781_ ALERT: Assault forces dispatched. 05781_ Identified Exp. Thermal Shield. 05781_ Field Propulsion Array broken. 05781_ Faulty integration triggers power surge. 05782_ Dropped Faulty Exp. Thermal Shield. 05795_ Acquired Prototype Leg. 05796_ Identified Hdn. Centrium Leg. 05799_ Slug penetrates Suspension Chamber. 05808_ Penetrated by Slug. 05815_ Suspension Chamber breached. Map ----- +----------------------------------------------------+ | ?????????????????????????????????????????????????? | | ?????????????????????????????????????????????????? | | ?????????????????????????????????????????????????? | | ?????????????????????????????????????????????????? | | ?????????????????????????????????????????????????? | | ?????????????????????????????????????????????????? | | ?????????????????????????????????????????????????? | | ?????????????????????????????????????????????????? | | ?????????????????????????????????????????????????? | | ?????????????????????????????????????????????????? | | ?????????????????????????????????????????????????? | | ????####?????????????????????????????????????????? | | ????#""#?????????????????????????????????????????? | | #####T"####????#########?????????????????????????? | | ###### ### ####??????????????????????? | | # ???????????????????????? | | # #????????????????????????? | | # #?????????????????????????? | | ###### # ###########???????????????? | | ?????# " """" ; #???????????????? | | ?????# # "" ##??????????????? | | ?????# # " # #??????????????? | | ?????# # " # """"" #??????????????? | | ?????# + ""*" #??????????????? | | ?????# # #??????????????? | | ?????# # # @ #??????????????? | | ?????# # ; #??????????????? | | ?????# # ;+### ###?????????????? | | ?????+ ???????????? | | ?????# 7 ?????????? | | ?????# ??????????? | | ?????# ??????????? | | ?????########+######+##################??????????? | | ????????# !# #?????????????????????? | | ????????# # """ #?????????????????????? | | ????????# !]! """ # " " #?????????????????????? | | ????????# ] ! """ # """ #?????????????????????? | | ????????# ! """ # #?????????????????????? | | ????????# + !! #?????????????????????? | | ????????# #^ ! #?????????????????????? | | ????????# # #?????????????????????? | | ????????##"" ""#### #?????????????????????? | | ?????????#""S""#??##########?????????????????????? | | ?????????#"""" #?????????????????????????????????? | | ?????????#######?????????????????????????????????? | | ?????????????????????????????????????????????????? | | ?????????????????????????????????????????????????? | | ?????????????????????????????????????????????????? | | ?????????????????????????????????????????????????? | | ?????????????????????????????????????????????????? | +----------------------------------------------------+ Best States ------------- Heat Dissipation 77 Coolant Potential 65 Energy Generation 57 Energy Capacity 770 Matter Stores 550 Matter Capacity 550 Sight Range 16 Terrain Scan Density 10 ECM Strength 1 Jamming Range 12 Power Amplification 30 Additional Mass Support 16 Corruption Containment 12 Armor Coverage 225 Resistance: EM 15 Power Shielding 33 Evasion (%) 66 Recoil Reduction 4 Offensive Hacking 12 Item Schematics ----------------- None Robot Schematics ------------------ None Fabricated ------------ R-06 Scavenger | x2 | -5/Factory | Preloaded Alien Tech Used ----------------- Sigix Broadsword Achievements -------------- None Challenges ------------ None Game ------ Seed FluxDecoderRipteeth Manual? 0 Play Time 01:47:59 Cumulative 175.3 hours Start 2024.10.08 @ 18:32:19 End 2024.10.08 @ 20:29:31 Sessions 1 Manual Loads 0 Difficulty Rogue Special Mode None Game No. 237 Rogue 237 Adventurer 0 Explorer 0 Win Type - Total 0 Types 0/0/0/0/0/0/0/0/0 Lore% 32 Gallery% 62 Achievement% 41 Wizard Run 0 Options --------- Layout 0 ASCII 0 Keyboard 0 Movement Mouse Keybinds 0 Fullscreen 1 Font 24/Smallcaps Map View 76x50 Zoom Use 0% Tactical HUD 1 Map Filters NONE Filters NONE Steam 1 RUN: 98a1f76e-c5f5-456c-a173-fba8d0a267cd